fUSD/lending_fUSD_20240116
["ID","MTS","AMOUNT","RATE_DAILY","PERIOD"]
[311752122,1705377040962,-664.29,0.00022159,2]
[311752126,1705377040973,-500.0,0.00022159,2]
[311752129,1705377040982,-500.0,0.00022159,2]
[311752132,1705377040991,-500.0,0.00022159,2]
[311752135,1705377041001,-688.07,0.00022159,2]
[311752138,1705377041010,-500.0,0.00022159,2]
[311752141,1705377041019,-585.5,0.00022159,2]
[311752144,1705377041029,-500.0,0.00022159,2]
[311752146,1705377041038,-500.0,0.00022159,2]
[311752149,1705377041046,-500.0,0.00022159,2]
[311752152,1705377041055,-500.0,0.00022159,2]
[311752155,1705377041064,-500.0,0.00022159,2]
[311752158,1705377041074,-500.0,0.00022159,2]
[311752162,1705377041083,-500.0,0.00022159,2]
[311752165,1705377041092,-612.43,0.00022159,2]
[311752168,1705377041101,-500.0,0.00022159,2]
[311752170,1705377041110,-500.0,0.00022159,2]
[311752174,1705377041119,-500.0,0.00022159,2]
[311752176,1705377041129,-495.27032573,0.00022159,2]
[311752180,1705377041141,-4.72967427,0.00022159,2]
[311752182,1705377041150,-545.69,0.00022159,2]
[311752184,1705377041160,-500.0,0.00022159,2]
[311752186,1705377041169,-500.0,0.00022159,2]
[311752188,1705377041178,-500.0,0.00022159,2]
[311752190,1705377041187,-500.0,0.00022159,2]
[311752192,1705377041196,-500.0,0.00022159,2]
[311752194,1705377041205,-500.0,0.00022159,2]
[311752196,1705377041214,-306.08032573,0.00022159,2]
[311752202,1705377041257,-193.91967427,0.00022159,2]
[311752204,1705377041266,-236.55682529,0.00022159,2]
[311752207,1705377041289,-365.44317471,0.00022159,2]
[311752210,1705377041303,-404.7209382,0.00022159,2]
[311752253,1705377041699,-95.2790618,0.00022159,2]
[311752255,1705377041708,-414.85164701,0.00022159,2]
[311752413,1705377043231,-85.14835299,0.00022159,2]
[311752415,1705377043244,-227.94634957,0.00022159,2]
[311752434,1705377043409,-287.73365043,0.00022159,2]
[311752437,1705377043422,-500.0,0.00022159,2]
[311752439,1705377043435,-500.0,0.00022159,2]
[311752442,1705377043451,-500.0,0.00022159,2]
[311752444,1705377043464,-500.0,0.00022159,2]
[311752447,1705377043483,-732.01,0.00022159,2]
[311752450,1705377043496,-274.70867953,0.00022159,2]
[311752453,1705377043516,-522.33132047,0.00022159,2]
[311752455,1705377043530,-500.0,0.00022159,2]
[311752458,1705377043544,-500.0,0.00022159,2]
[311752460,1705377043559,-512.47,0.00022159,2]
[311752463,1705377043573,-70.74867953,0.00022159,2]
[311752846,1705377046776,-540.03,0.00022158,2]
[311752848,1705377046786,-500.0,0.00022158,2]
[311752850,1705377046795,-199.72904694,0.00022159,2]
[311752853,1705377046807,-229.52227353,0.00022159,2]
[311752855,1705377046816,-121.18352642,0.00022159,2]
[311752862,1705377046859,-37.04665613,0.00022159,2]
[311752865,1705377046868,-500.0,0.00022159,2]
[311752868,1705377046877,-46.22375335,0.00022159,2]
[311753135,1705377092168,250.0,0.00021918,2]
[311753136,1705377116701,151.01,0.00021411,2]
[311753137,1705377116853,151.01,0.00021564,2]
[311753138,1705377116999,151.01,0.00021716,2]
[311753139,1705377117119,151.01,0.00021869,2]
[311753140,1705377117247,151.01,0.00022022,2]
[311753141,1705377199574,800.0,0.00021996,2]
[311753142,1705377211330,547.0,0.00021939,2]
[311753143,1705377231354,164.94,0.00021601,2]
[311753144,1705377261952,274.3,0.00019467,2]
[311753146,1705377266730,274.3,0.00021731,2]
[311753148,1705377317080,376.32,0.00021375,2]
[311753149,1705377319693,166.82351887,0.00022057,2]
[311753150,1705377431296,409.92,0.0002137,2]
[311753151,1705377569294,250.0,0.00021918,2]
[311753152,1705377586438,2064.7387,0.00022058,2]
[311753153,1705377617033,153.23,0.0002137,2]
[311753154,1705377617251,153.23,0.00021503,2]
[311753155,1705377617473,153.23,0.00021637,2]
[311753156,1705377617696,153.23,0.0002177,2]
[311753157,1705377617999,153.23,0.00021904,2]
[311753158,1705377618138,153.23,0.00022037,2]
[311753159,1705377700722,258.36,0.00019438,2]
[311753160,1705377700937,258.36,0.00021702,2]
[311753161,1705377759929,351.23,0.00021351,2]
[311753162,1705377787987,500.0,0.00021996,2]
[311753163,1705377798320,800.0,0.00021988,2]
[311753165,1705377881919,672.06,0.00021354,2]
[311753167,1705377965116,150.0,0.000221,2]
[311753170,1705377971280,1508.44,0.00021343,2]
[311753171,1705378022462,250.0,0.00021918,2]
[311753172,1705378052857,250.0,0.00022058,2]
[311753173,1705378098864,155.13781589,0.00022058,2]
[311753174,1705378146439,243.45,0.00019402,2]
[311753175,1705378146639,243.45,0.00021666,2]
[311753176,1705378165229,222.53370854,0.00022057,2]
[311753177,1705378198769,250.0,0.00022058,2]
[311753178,1705378201389,327.81,0.00021339,2]
[311753185,1705378231433,-198.26919029,0.00022148,2]
[311753186,1705378231443,-763.59853721,0.00022151,2]
[311753187,1705378231452,-54.5122785,0.00022155,2]
[311753188,1705378231464,-153.01266298,0.00022155,2]
[311753189,1705378231474,-306.97180835,0.00022156,2]
[311753190,1705378231483,-757.12,0.00022156,2]
[311753191,1705378231493,-1354.05874252,0.00022156,2]
[311753192,1705378231505,-280.0,0.00022156,2]
[311753193,1705378231545,-91.87125748,0.00022156,2]
[311753194,1705378231555,-500.0,0.00022156,2]
[311753195,1705378231564,-1331.22,0.00022156,2]
[311753196,1705378231574,-1250.5862365,0.00022156,2]
[311753197,1705378231615,-1320.2837635,0.00022156,2]
[311753198,1705378231625,-819.76,0.00022156,2]
[311753199,1705378231634,-500.0,0.00022156,2]
[311753200,1705378231644,-491.53078467,0.00022156,2]
[311753201,1705378231653,-500.0,0.00022156,2]
[311753202,1705378231662,-31.12164333,0.00022156,2]
[311753203,1705378231693,-378.44094283,0.00022156,2]
[311753204,1705378231723,-539.70741384,0.00022156,2]
[311753205,1705378231732,-880.5,0.00022156,2]
[311753206,1705378231743,-519.12433638,0.00022156,2]
[311753207,1705378231755,-1764.73566362,0.00022156,2]
[311753208,1705378231765,-534.79,0.00022156,2]
[311753209,1705378231774,-1047.04,0.00022156,2]
[311753210,1705378231783,-3812.57698449,0.00022156,2]
[311753214,1705378237442,-4999.15470271,0.00022156,2]
[311753215,1705378237456,-1869.5683128,0.00022156,2]
[311753216,1705378237465,-1080.02,0.00022156,2]
[311753217,1705378237475,-901.65,0.00022156,2]
[311753218,1705378237485,-1248.71,0.00022156,2]
[311753219,1705378237494,-950.49,0.00022156,2]
[311753220,1705378237503,-1675.14,0.00022156,2]
[311753221,1705378237513,-500.0,0.00022156,2]
[311753222,1705378237523,-2489.67,0.00022156,2]
[311753223,1705378237532,-770.27,0.00022156,2]
[311753224,1705378237542,-500.0,0.00022156,2]
[311753225,1705378237551,-1204.43,0.00022156,2]
[311753226,1705378237561,-500.0,0.00022156,2]
[311753227,1705378237570,-566.68,0.00022156,2]
[311753228,1705378237580,-500.0,0.00022156,2]
[311753229,1705378237590,-500.0,0.00022156,2]
[311753230,1705378237600,-821.86,0.00022156,2]
[311753231,1705378237610,-645.61,0.00022156,2]
[311753232,1705378237619,-450.1600283,0.00022157,2]
[311753233,1705378237629,-172.19959115,0.00022157,2]
[311753234,1705378237639,-33733.67881694,0.00022157,2]
[311753235,1705378237648,-15728.23649239,0.00022157,2]
[311753236,1705378237658,-1981.22871792,0.00022157,2]
[311753237,1705378237667,-1000.0,0.00022157,2]
[311753238,1705378237678,-500.0,0.00022157,2]
[311753239,1705378237687,-517.08177279,0.00022157,2]
[311753240,1705378237697,-500.0,0.00022157,2]
[311753241,1705378237706,-500.0,0.00022157,2]
[311753242,1705378237716,-500.0,0.00022157,2]
[311753243,1705378237725,-500.0,0.00022157,2]
[311753244,1705378237735,-500.0,0.00022157,2]
[311753245,1705378237744,-500.0,0.00022157,2]
[311753246,1705378237754,-500.0,0.00022157,2]
[311753247,1705378237764,-500.0,0.00022157,2]
[311753248,1705378237774,-500.0,0.00022157,2]
[311753249,1705378237783,-541.5,0.00022157,2]
[311753250,1705378237793,-500.0,0.00022157,2]
[311753251,1705378237803,-500.0,0.00022157,2]
[311753252,1705378237812,-628.08,0.00022157,2]
[311753253,1705378237821,-500.0,0.00022157,2]
[311753254,1705378237830,-500.0,0.00022157,2]
[311753255,1705378237839,-500.0,0.00022157,2]
[311753256,1705378237848,-500.0,0.00022157,2]
[311753257,1705378237857,-509.18,0.00022157,2]
[311753258,1705378237867,-500.0,0.00022157,2]
[311753259,1705378237877,-500.0,0.00022157,2]
[311753261,1705378237887,-500.0,0.00022157,2]
[311753262,1705378237897,-500.0,0.00022157,2]
[311753264,1705378237906,-500.0,0.00022157,2]
[311753266,1705378237915,-783.19,0.00022157,2]
[311753268,1705378237925,-500.0,0.00022157,2]
[311753270,1705378237934,-500.0,0.00022157,2]
[311753272,1705378237944,-500.0,0.00022157,2]
[311753274,1705378237953,-500.0,0.00022157,2]
[311753276,1705378237962,-500.0,0.00022157,2]
[311753278,1705378237972,-500.0,0.00022157,2]
[311753280,1705378237981,-500.0,0.00022157,2]
[311753282,1705378237990,-666.44,0.00022157,2]
[311753284,1705378237999,-500.0,0.00022157,2]
[311753286,1705378238008,-396.7054665,0.00022157,2]
[311753288,1705378238017,-500.0,0.00022157,2]
[311753290,1705378238027,-795.08,0.00022157,2]
[311753292,1705378238036,-500.0,0.00022157,2]
[311753294,1705378238045,-500.0,0.00022157,2]
[311753296,1705378238054,-621.13,0.00022157,2]
[311753298,1705378238064,-500.0,0.00022157,2]
[311753300,1705378238073,-500.0,0.00022157,2]
[311753302,1705378238082,-500.0,0.00022157,2]
[311753304,1705378238091,-500.0,0.00022157,2]
[311753306,1705378238100,-500.0,0.00022157,2]
[311753308,1705378238110,-500.0,0.00022157,2]
[311753310,1705378238119,-584.19,0.00022157,2]
[311753312,1705378238128,-500.0,0.00022157,2]
[311753314,1705378238137,-500.0,0.00022157,2]
[311753317,1705378238146,-500.0,0.00022157,2]
[311753319,1705378238156,-500.0,0.00022157,2]
[311753321,1705378238166,-500.0,0.00022157,2]
[311753323,1705378238175,-570.23,0.00022157,2]
[311753324,1705378238184,-500.0,0.00022157,2]
[311753326,1705378238193,-500.0,0.00022157,2]
[311753328,1705378238202,-500.0,0.00022157,2]
[311753330,1705378238211,-500.0,0.00022157,2]
[311753332,1705378238220,-529.54,0.00022157,2]
[311753334,1705378238229,-500.0,0.00022157,2]
[311753336,1705378238239,-500.0,0.00022157,2]
[311753339,1705378238248,-500.0,0.00022157,2]
[311753341,1705378238257,-500.0,0.00022157,2]
[311753342,1705378238266,-500.0,0.00022157,2]
[311753344,1705378238275,-500.0,0.00022157,2]
[311753346,1705378238287,-500.0,0.00022157,2]
[311753349,1705378238296,-500.0,0.00022157,2]
[311753351,1705378238306,-500.0,0.00022157,2]
[311753353,1705378238315,-500.0,0.00022157,2]
[311753355,1705378238325,-500.0,0.00022157,2]
[311753356,1705378238334,-500.0,0.00022157,2]
[311753359,1705378238344,-500.0,0.00022157,2]
[311753360,1705378238355,-500.0,0.00022157,2]
[311753363,1705378238365,-500.0,0.00022157,2]
[311753364,1705378238374,-500.0,0.00022157,2]
[311753366,1705378238384,-500.0,0.00022157,2]
[311753368,1705378238393,-500.0,0.00022157,2]
[311753370,1705378238402,-500.0,0.00022157,2]
[311753372,1705378238411,-500.0,0.00022157,2]
[311753374,1705378238419,-500.0,0.00022157,2]
[311753376,1705378238428,-548.5,0.00022157,2]
[311753378,1705378238437,-500.0,0.00022157,2]
[311753380,1705378238446,-500.0,0.00022157,2]
[311753382,1705378238456,-500.0,0.00022157,2]
[311753384,1705378238465,-500.0,0.00022157,2]
[311753386,1705378238474,-948.98,0.00022157,2]
[311753388,1705378238483,-500.0,0.00022157,2]
[311753390,1705378238494,-500.0,0.00022157,2]
[311753392,1705378238503,-535.61,0.00022157,2]
[311753394,1705378238512,-500.0,0.00022157,2]
[311753395,1705378238521,-500.0,0.00022157,2]
[311753396,1705378238530,-500.0,0.00022157,2]
[311753397,1705378238538,-500.0,0.00022157,2]
[311753398,1705378238547,-500.0,0.00022157,2]
[311753399,1705378238556,-500.0,0.00022157,2]
[311753400,1705378238565,-500.0,0.00022157,2]
[311753401,1705378238574,-611.29,0.00022157,2]
[311753402,1705378238582,-518.66,0.00022157,2]
[311753403,1705378238592,-274.90550859,0.00022157,2]
[311753404,1705378238601,-500.0,0.00022157,2]
[311753406,1705378238610,-500.0,0.00022157,2]
[311753408,1705378238618,-500.0,0.00022157,2]
[311753410,1705378238628,-500.0,0.00022157,2]
[311753412,1705378238636,-500.0,0.00022157,2]
[311753414,1705378238645,-544.82,0.00022157,2]
[311753416,1705378238654,-500.0,0.00022157,2]
[311753418,1705378238663,-500.0,0.00022157,2]
[311753420,1705378238672,-500.0,0.00022157,2]
[311753421,1705378238682,-500.0,0.00022157,2]
[311753423,1705378238691,-500.0,0.00022157,2]
[311753426,1705378238701,-504.2,0.00022157,2]
[311753427,1705378238710,-500.0,0.00022157,2]
[311753429,1705378238719,-1101.92,0.00022157,2]
[311753431,1705378238728,-500.0,0.00022157,2]
[311753433,1705378238738,-500.0,0.00022157,2]
[311753434,1705378238747,-500.0,0.00022157,2]
[311753436,1705378238755,-500.0,0.00022157,2]
[311753438,1705378238765,-500.0,0.00022157,2]
[311753440,1705378238774,-500.0,0.00022157,2]
[311753442,1705378238784,-500.0,0.00022157,2]
[311753444,1705378238793,-510.11,0.00022157,2]
[311753446,1705378238802,-500.0,0.00022157,2]
[311753448,1705378238811,-500.0,0.00022157,2]
[311753450,1705378238820,-500.0,0.00022157,2]
[311753452,1705378238828,-500.0,0.00022157,2]
[311753454,1705378238837,-500.0,0.00022157,2]
[311753456,1705378238847,-500.0,0.00022157,2]
[311753457,1705378238857,-500.0,0.00022157,2]
[311753459,1705378238870,-500.0,0.00022157,2]
[311753461,1705378238879,-500.0,0.00022157,2]
[311753463,1705378238888,-500.0,0.00022157,2]
[311753465,1705378238897,-500.0,0.00022157,2]
[311753467,1705378238906,-523.58,0.00022157,2]
[311753469,1705378238916,-500.0,0.00022157,2]
[311753471,1705378238925,-500.0,0.00022157,2]
[311753473,1705378238933,-500.0,0.00022157,2]
[311753475,1705378238943,-500.0,0.00022157,2]
[311753477,1705378238953,-500.0,0.00022157,2]
[311753479,1705378238963,-500.0,0.00022157,2]
[311753481,1705378238972,-500.0,0.00022157,2]
[311753483,1705378238980,-500.0,0.00022157,2]
[311753485,1705378238989,-500.0,0.00022157,2]
[311753487,1705378238998,-500.0,0.00022157,2]
[311753489,1705378239007,-522.67,0.00022157,2]
[311753491,1705378239016,-500.0,0.00022157,2]
[311753493,1705378239024,-500.0,0.00022157,2]
[311753495,1705378239033,-516.66,0.00022157,2]
[311753496,1705378239042,-206.59916162,0.00022157,2]
[311753498,1705378239051,-500.0,0.00022157,2]
[311753500,1705378239060,-500.0,0.00022157,2]
[311753502,1705378239070,-500.0,0.00022157,2]
[311753504,1705378239079,-500.0,0.00022157,2]
[311753506,1705378239088,-500.0,0.00022157,2]
[311753508,1705378239097,-500.0,0.00022157,2]
[311753510,1705378239106,-500.0,0.00022157,2]
[311753512,1705378239115,-524.11225772,0.00022157,2]
[311753514,1705378239123,-541.55,0.00022157,2]
[311753516,1705378239133,-601.06,0.00022157,2]
[311753518,1705378239141,-500.0,0.00022157,2]
[311753520,1705378239150,-500.0,0.00022157,2]
[311753522,1705378239159,-500.0,0.00022157,2]
[311753524,1705378239169,-500.0,0.00022157,2]
[311753526,1705378239178,-500.0,0.00022157,2]
[311753528,1705378239187,-500.0,0.00022157,2]
[311753530,1705378239196,-500.0,0.00022157,2]
[311753533,1705378239205,-500.0,0.00022157,2]
[311753535,1705378239214,-545.75,0.00022157,2]
[311753537,1705378239223,-500.0,0.00022157,2]
[311753538,1705378239232,-500.0,0.00022157,2]
[311753540,1705378239243,-500.0,0.00022157,2]
[311753543,1705378239253,-684.49,0.00022157,2]
[311753545,1705378239263,-500.0,0.00022157,2]
[311753546,1705378239272,-500.0,0.00022157,2]
[311753548,1705378239282,-557.95426745,0.00022157,2]
[311753550,1705378239291,-522.38,0.00022157,2]
[311753552,1705378239301,-500.0,0.00022157,2]
[311753554,1705378239310,-500.0,0.00022157,2]
[311753556,1705378239319,-500.0,0.00022157,2]
[311753558,1705378239327,-500.0,0.00022157,2]
[311753560,1705378239337,-164.15792037,0.00022157,2]
[311753562,1705378239345,-500.0,0.00022157,2]
[311753564,1705378239354,-500.0,0.00022157,2]
[311753566,1705378239363,-500.0,0.00022157,2]
[311753568,1705378239373,-500.0,0.00022157,2]
[311753570,1705378239382,-500.0,0.00022157,2]
[311753572,1705378239391,-528.65,0.00022157,2]
[311753574,1705378239400,-500.0,0.00022157,2]
[311753576,1705378239409,-500.0,0.00022157,2]
[311753578,1705378239418,-575.15,0.00022157,2]
[311753580,1705378239427,-500.0,0.00022157,2]
[311753582,1705378239436,-500.0,0.00022157,2]
[311753584,1705378239445,-500.0,0.00022157,2]
[311753586,1705378239454,-500.0,0.00022157,2]
[311753588,1705378239463,-500.0,0.00022157,2]
[311753590,1705378239472,-515.93550663,0.00022157,2]
[311753592,1705378239482,-620.84,0.00022157,2]
[311753594,1705378239492,-500.0,0.00022157,2]
[311753596,1705378239501,-588.18,0.00022157,2]
[311753599,1705378239510,-500.0,0.00022157,2]
[311753600,1705378239520,-500.0,0.00022157,2]
[311753602,1705378239529,-500.0,0.00022157,2]
[311753604,1705378239538,-500.0,0.00022157,2]
[311753607,1705378239548,-3691.54,0.00022157,2]
[311753608,1705378239557,-500.0,0.00022157,2]
[311753610,1705378239566,-1412.0,0.00022157,2]
[311753612,1705378239576,-500.0,0.00022157,2]
[311753614,1705378239585,-500.0,0.00022157,2]
[311753616,1705378239594,-500.0,0.00022157,2]
[311753618,1705378239603,-690.1,0.00022157,2]
[311753620,1705378239612,-500.0,0.00022157,2]
[311753622,1705378239621,-2090.42,0.00022157,2]
[311753624,1705378239630,-1407.81,0.00022157,2]
[311753626,1705378239639,-500.0,0.00022157,5]
[311753628,1705378239648,-3426.16,0.00022157,2]
[311753630,1705378239657,-500.0,0.00022157,2]
[311753632,1705378239666,-500.0,0.00022157,2]
[311753634,1705378239675,-608.57,0.00022157,2]
[311753636,1705378239684,-651.13,0.00022157,2]
[311753638,1705378239693,-504.11,0.00022157,2]
[311753640,1705378239702,-500.0,0.00022157,2]
[311753642,1705378239711,-500.0,0.00022157,2]
[311753644,1705378239720,-505.43,0.00022157,2]
[311753646,1705378239729,-500.0,0.00022157,2]
[311753648,1705378239738,-500.0,0.00022157,2]
[311753649,1705378239747,-374.58321479,0.00022157,2]
[311753651,1705378239756,-500.0,0.00022157,2]
[311753653,1705378239765,-500.0,0.00022157,2]
[311753655,1705378239775,-500.0,0.00022157,2]
[311753657,1705378239784,-600.08,0.00022157,2]
[311753659,1705378239793,-2143.19,0.00022157,2]
[311753661,1705378239802,-1143.7,0.00022157,2]
[311753663,1705378239811,-500.0,0.00022157,2]
[311753665,1705378239819,-500.0,0.00022157,2]
[311753667,1705378239828,-6287.89,0.00022157,2]
[311753669,1705378239837,-1016.22,0.00022157,2]
[311753671,1705378239846,-223.01924879,0.00022157,2]
[311753673,1705378239855,-500.0,0.00022157,2]
[311753675,1705378239864,-500.0,0.00022157,2]
[311753677,1705378239873,-536.39778048,0.00022157,2]
[311753679,1705378239882,-500.0,0.00022157,2]
[311753681,1705378239891,-500.0,0.00022157,2]
[311753683,1705378239901,-501.15,0.00022157,2]
[311753685,1705378239910,-500.0,0.00022157,2]
[311753687,1705378239919,-500.0,0.00022157,2]
[311753689,1705378239928,-3940.51,0.00022157,2]
[311753691,1705378239936,-562.73,0.00022157,2]
[311753693,1705378239946,-500.0,0.00022157,2]
[311753695,1705378239955,-5999.56,0.00022157,2]
[311753697,1705378239964,-3385.6,0.00022157,2]
[311753699,1705378239973,-985.72,0.00022157,2]
[311753700,1705378239982,-500.0,0.00022157,2]
[311753703,1705378239991,-3553.69,0.00022157,2]
[311753704,1705378240001,-500.0,0.00022157,2]
[311753706,1705378240010,-500.0,0.00022157,2]
[311753708,1705378240019,-536.7,0.00022157,2]
[311753710,1705378240028,-182.26,0.00022157,2]
[311753712,1705378240037,-17126.86,0.00022157,2]
[311753714,1705378240045,-633.73,0.00022157,2]
[311753716,1705378240055,-500.0,0.00022157,2]
[311753718,1705378240063,-500.0,0.00022157,2]
[311753720,1705378240072,-2218.44,0.00022157,2]
[311753722,1705378240081,-2860.71,0.00022157,2]
[311753724,1705378240090,-2411.04,0.00022157,2]
[311753726,1705378240099,-1113.19,0.00022157,2]
[311753728,1705378240108,-500.0,0.00022157,2]
[311753730,1705378240117,-500.0,0.00022157,2]
[311753732,1705378240126,-1532.91,0.00022157,2]
[311753734,1705378240135,-8028.51,0.00022157,2]
[311753736,1705378240144,-4747.94,0.00022157,2]
[311753738,1705378240152,-549.03,0.00022157,2]
[311753740,1705378240162,-500.0,0.00022157,2]
[311753742,1705378240171,-945.94,0.00022157,2]
[311753744,1705378240180,-1438.97,0.00022157,2]
[311753746,1705378240189,-500.0,0.00022157,2]
[311753748,1705378240199,-1325.69,0.00022157,2]
[311753750,1705378240208,-500.0,0.00022157,2]
[311753752,1705378240217,-1522.11,0.00022157,2]
[311753754,1705378240226,-6292.54,0.00022157,2]
[311753756,1705378240235,-533.99,0.00022157,2]
[311753758,1705378240244,-500.0,0.00022157,2]
[311753760,1705378240253,-537.74,0.00022157,2]
[311753762,1705378240262,-589.68,0.00022157,2]
[311753764,1705378240271,-2666.98,0.00022157,2]
[311753766,1705378240281,-500.0,0.00022157,2]
[311753768,1705378240290,-500.0,0.00022157,2]
[311753770,1705378240299,-500.0,0.00022157,2]
[311753772,1705378240308,-500.0,0.00022157,2]
[311753774,1705378240317,-610.57,0.00022157,2]
[311753776,1705378240326,-500.0,0.00022157,2]
[311753778,1705378240335,-500.0,0.00022157,2]
[311753780,1705378240345,-500.0,0.00022157,2]
[311753782,1705378240354,-500.0,0.00022157,2]
[311753784,1705378240363,-500.0,0.00022157,2]
[311753786,1705378240372,-5758.52,0.00022157,2]
[311753788,1705378240381,-906.71,0.00022157,2]
[311753790,1705378240390,-500.0,0.00022157,2]
[311753792,1705378240399,-559.89,0.00022157,2]
[311753794,1705378240408,-500.0,0.00022157,2]
[311753796,1705378240417,-500.0,0.00022157,2]
[311753798,1705378240426,-2170.84,0.00022157,2]
[311753800,1705378240435,-500.0,0.00022157,2]
[311753802,1705378240444,-986.63,0.00022157,2]
[311753804,1705378240453,-544.47,0.00022157,2]
[311753806,1705378240462,-1258.37,0.00022157,2]
[311753808,1705378240472,-500.0,0.00022157,2]
[311753810,1705378240481,-500.0,0.00022157,2]
[311753812,1705378240491,-500.0,0.00022157,2]
[311753814,1705378240500,-728.97,0.00022157,2]
[311753816,1705378240509,-500.0,0.00022157,2]
[311753818,1705378240518,-500.0,0.00022157,2]
[311753820,1705378240527,-500.0,0.00022157,2]
[311753832,1705378240686,-518.59,0.00022157,2]
[311753833,1705378240696,-500.0,0.00022157,2]
[311753834,1705378240706,-5075.46,0.00022157,2]
[311753835,1705378240716,-2678.5,0.00022157,2]
[311753837,1705378240725,-1239.55,0.00022157,2]
[311753839,1705378240735,-2990.34,0.00022157,2]
[311753842,1705378240745,-500.0,0.00022157,2]
[311753843,1705378240754,-500.0,0.00022157,2]
[311753846,1705378240764,-500.0,0.00022157,2]
[311753848,1705378240774,-500.0,0.00022157,2]
[311753850,1705378240783,-500.0,0.00022157,2]
[311753852,1705378240792,-554.98470763,0.00022157,2]
[311753854,1705378240801,-500.0,0.00022157,2]
[311753856,1705378240811,-586.36,0.00022157,2]
[311753858,1705378240820,-798.3,0.00022157,2]
[311753860,1705378240829,-500.0,0.00022157,2]
[311753862,1705378240838,-2776.2,0.00022157,2]
[311753864,1705378240847,-500.0,0.00022157,2]
[311753866,1705378240856,-500.0,0.00022157,2]
[311753868,1705378240869,-591.03,0.00022157,2]
[311753870,1705378240878,-500.0,0.00022157,2]
[311753872,1705378240887,-944.22,0.00022157,2]
[311753874,1705378240897,-500.0,0.00022157,2]
[311753876,1705378240907,-500.0,0.00022157,2]
[311753878,1705378240916,-599.6,0.00022157,2]
[311753880,1705378240925,-553.87,0.00022157,2]
[311753882,1705378240934,-1303.86,0.00022157,2]
[311753884,1705378240944,-721.89,0.00022157,2]
[311753886,1705378240956,-500.0,0.00022157,2]
[311753888,1705378240965,-500.0,0.00022157,2]
[311753890,1705378240974,-2372.65,0.00022157,2]
[311753892,1705378240984,-1097.95,0.00022157,2]
[311753894,1705378240994,-500.0,0.00022157,2]
[311753896,1705378241003,-2336.12,0.00022157,2]
[311753898,1705378241012,-500.0,0.00022157,2]
[311753900,1705378241021,-500.0,0.00022157,2]
[311753902,1705378241031,-500.0,0.00022157,2]
[311753904,1705378241040,-500.0,0.00022157,2]
[311753906,1705378241049,-500.0,0.00022157,2]
[311753908,1705378241059,-515.47,0.00022157,2]
[311753910,1705378241068,-563.84,0.00022157,2]
[311753912,1705378241077,-1099.7,0.00022157,2]
[311753914,1705378241086,-2142.56,0.00022157,2]
[311753917,1705378241096,-1380.19,0.00022157,2]
[311753919,1705378241105,-1048.9,0.00022157,2]